fUST/lending_fUST_20260624
["ID","MTS","AMOUNT","RATE_DAILY","PERIOD"]
[426323996,1782305447000,-182.0,0.00053656,2]
[426323993,1782305447000,-150.0,0.00053656,2]
[426323995,1782305447000,-150.0,0.00053656,2]
[426323997,1782305447000,-217.0,0.0005379,30]
[426323986,1782305447000,-791.0,0.00052476,120]
[426323999,1782305447000,-1000.0,0.00053999,120]
[426323998,1782305447000,-2000.0,0.000539,120]
[426324013,1782305447000,-500.0,0.00054794,120]
[426324012,1782305447000,-500.0,0.00054794,120]
[426324010,1782305447000,-500.0,0.00054794,120]
[426324009,1782305447000,-500.0,0.00054794,120]
[426324008,1782305447000,-500.0,0.00054794,120]
[426324015,1782305447000,-500.0,0.00054794,120]
[426324005,1782305447000,-7775.480776,0.00054794,120]
[426324002,1782305447000,-20198.42301163,0.00054381,120]
[426324001,1782305447000,-696.13853432,0.00054,120]
[426324003,1782305447000,-198.02875313,0.00054536,39]
[426324000,1782305447000,-500.0,0.00054,120]
[426324011,1782305447000,-500.0,0.00054794,120]
[426324086,1782305448000,-447.90804306,0.00054794,120]
[426324087,1782305448000,-500.0,0.00054794,120]
[426324085,1782305448000,-500.0,0.00054794,120]
[426324084,1782305448000,-500.0,0.00054794,120]
[426324077,1782305448000,-500.0,0.00054794,120]
[426324091,1782305448000,-500.0,0.00054794,120]
[426324082,1782305448000,-500.0,0.00054794,120]
[426324076,1782305448000,-500.0,0.00054794,120]
[426324079,1782305448000,-500.0,0.00054794,120]
[426324093,1782305448000,-500.0,0.00054794,120]
[426324074,1782305448000,-500.0,0.00054794,120]
[426324088,1782305448000,-500.0,0.00054794,120]
[426324094,1782305448000,-500.0,0.00054794,120]
[426324096,1782305448000,-500.0,0.00054794,120]
[426324092,1782305448000,-500.0,0.00054794,120]
[426324083,1782305448000,-500.0,0.00054794,120]
[426324089,1782305448000,-500.0,0.00054794,120]
[426324107,1782305448000,-500.0,0.00054794,120]
[426324097,1782305448000,-592.8429433,0.00054794,120]
[426324095,1782305448000,-500.0,0.00054794,120]
[426324099,1782305448000,-500.0,0.00054794,120]
[426324106,1782305448000,-500.0,0.00054794,120]
[426324098,1782305448000,-500.0,0.00054794,120]
[426324100,1782305448000,-348.54642848,0.00054794,120]
[426324102,1782305448000,-500.0,0.00054794,120]
[426324078,1782305448000,-500.0,0.00054794,120]
[426324103,1782305448000,-500.0,0.00054794,120]
[426324090,1782305448000,-500.0,0.00054794,120]
[426324075,1782305448000,-500.0,0.00054794,120]
[426324065,1782305448000,-500.0,0.00054794,120]
[426324073,1782305448000,-500.0,0.00054794,120]
[426324104,1782305448000,-500.0,0.00054794,120]
[426324055,1782305448000,-500.0,0.00054794,120]
[426324048,1782305448000,-500.0,0.00054794,120]
[426324047,1782305448000,-500.0,0.00054794,120]
[426324046,1782305448000,-500.0,0.00054794,120]
[426324049,1782305448000,-500.0,0.00054794,120]
[426324050,1782305448000,-529.28442168,0.00054794,120]
[426324052,1782305448000,-500.0,0.00054794,120]
[426324051,1782305448000,-500.0,0.00054794,120]
[426324053,1782305448000,-500.0,0.00054794,120]
[426324054,1782305448000,-649.97829563,0.00054794,120]
[426324057,1782305448000,-500.0,0.00054794,120]
[426324067,1782305448000,-500.0,0.00054794,120]
[426324071,1782305448000,-500.0,0.00054794,120]
[426324058,1782305448000,-500.0,0.00054794,120]
[426324068,1782305448000,-500.0,0.00054794,120]
[426324062,1782305448000,-610.314169,0.00054794,120]
[426324060,1782305448000,-500.0,0.00054794,120]
[426324063,1782305448000,-540.85405686,0.00054794,120]
[426324064,1782305448000,-500.0,0.00054794,120]
[426324066,1782305448000,-500.0,0.00054794,120]
[426324059,1782305448000,-500.0,0.00054794,120]
[426324061,1782305448000,-500.0,0.00054794,120]
[426324070,1782305448000,-500.0,0.00054794,120]
[426324080,1782305448000,-500.0,0.00054794,120]
[426324081,1782305448000,-500.0,0.00054794,120]
[426324069,1782305448000,-500.00000007,0.00054794,120]
[426324072,1782305448000,-500.0,0.00054794,120]
[426324056,1782305448000,-500.0,0.00054794,120]
[426324101,1782305448000,-500.0,0.00054794,120]
[426324164,1782305448000,-500.0,0.00054794,120]
[426324108,1782305448000,-500.0,0.00054794,120]
[426324141,1782305448000,-500.0,0.00054794,60]
[426324142,1782305448000,-500.0,0.00054794,60]
[426324148,1782305448000,-500.0,0.00054794,120]
[426324143,1782305448000,-516.46820907,0.00054794,60]
[426324152,1782305448000,-500.0,0.00054794,120]
[426324146,1782305448000,-500.0,0.00054794,120]
[426324145,1782305448000,-500.0,0.00054794,120]
[426324151,1782305448000,-500.0,0.00054794,120]
[426324153,1782305448000,-500.0,0.00054794,120]
[426324154,1782305448000,-500.0,0.00054794,120]
[426324144,1782305448000,-500.0,0.00054794,120]
[426324149,1782305448000,-500.0,0.00054794,120]
[426324147,1782305448000,-500.0,0.00054794,120]
[426324156,1782305448000,-500.0,0.00054794,120]
[426324166,1782305448000,-500.0,0.00054794,120]
[426324167,1782305448000,-590.92858301,0.00054794,120]
[426324159,1782305448000,-500.0,0.00054794,120]
[426324157,1782305448000,-500.0,0.00054794,120]
[426324155,1782305448000,-593.30299239,0.00054794,120]
[426324158,1782305448000,-500.0,0.00054794,120]
[426324163,1782305448000,-500.0,0.00054794,120]
[426324161,1782305448000,-500.0,0.00054794,120]
[426324165,1782305448000,-500.0,0.00054794,120]
[426324160,1782305448000,-500.0,0.00054794,120]
[426324162,1782305448000,-500.0,0.00054794,120]
[426324105,1782305448000,-500.0,0.00054794,120]
[426324168,1782305448000,-500.0,0.00054794,120]
[426324135,1782305448000,-500.0,0.00054794,120]
[426324139,1782305448000,-500.0,0.00054794,60]
[426324150,1782305448000,-500.0,0.00054794,120]
[426324137,1782305448000,-533.95184958,0.00054794,120]
[426324110,1782305448000,-500.0,0.00054794,120]
[426324111,1782305448000,-500.0,0.00054794,120]
[426324140,1782305448000,-500.0,0.00054794,60]
[426324116,1782305448000,-500.0,0.00054794,120]
[426324109,1782305448000,-500.0,0.00054794,120]
[426324115,1782305448000,-500.0,0.00054794,120]
[426324118,1782305448000,-500.0,0.00054794,120]
[426324120,1782305448000,-500.0,0.00054794,120]
[426324117,1782305448000,-500.0,0.00054794,120]
[426324119,1782305448000,-500.0,0.00054794,120]
[426324114,1782305448000,-500.0,0.00054794,120]
[426324113,1782305448000,-647.82038148,0.00054794,120]
[426324122,1782305448000,-500.0,0.00054794,120]
[426324132,1782305448000,-500.0,0.00054794,120]
[426324112,1782305448000,-500.0,0.00054794,120]
[426324123,1782305448000,-500.0,0.00054794,120]
[426324133,1782305448000,-500.0,0.00054794,120]
[426324136,1782305448000,-500.0,0.00054794,120]
[426324134,1782305448000,-500.0,0.00054794,120]
[426324124,1782305448000,-500.0,0.00054794,120]
[426324126,1782305448000,-500.0,0.00054794,120]
[426324130,1782305448000,-500.0,0.00054794,120]
[426324138,1782305448000,-500.0,0.00054794,60]
[426324129,1782305448000,-349.51071641,0.00054794,120]
[426324127,1782305448000,-500.0,0.00054794,120]
[426324128,1782305448000,-500.0,0.00054794,120]
[426324125,1782305448000,-500.0,0.00054794,120]
[426324131,1782305448000,-500.0,0.00054794,120]
[426324121,1782305448000,-500.0,0.00054794,120]
[426324209,1782305449000,-524.11213053,0.00054794,120]
[426324208,1782305449000,-500.0,0.00054794,120]
[426324211,1782305449000,-200.0,0.00054794,2]
[426324204,1782305449000,-519.62348549,0.00054794,120]
[426324198,1782305449000,-500.0,0.00054794,120]
[426324216,1782305449000,-518.18452718,0.00054794,120]
[426324215,1782305449000,-799.0,0.00054794,6]
[426324205,1782305449000,-978.44,0.00054794,120]
[426324203,1782305449000,-500.0,0.00054794,120]
[426324212,1782305449000,-513.55413934,0.00054794,120]
[426324202,1782305449000,-500.0,0.00054794,120]
[426324206,1782305449000,-839.983023,0.00054794,120]
[426324207,1782305449000,-163.45715086,0.00054794,120]
[426324228,1782305449000,-543.44384319,0.00054794,120]
[426324214,1782305449000,-503.01601779,0.00054794,120]
[426324213,1782305449000,-500.0,0.00054794,120]
[426324219,1782305449000,-500.0,0.00054794,120]
[426324217,1782305449000,-556.1523531,0.00054794,120]
[426324223,1782305449000,-500.0,0.00054794,120]
[426324222,1782305449000,-513.42884723,0.00054794,120]
[426324221,1782305449000,-535.02940687,0.00054794,120]
[426324227,1782305449000,-540.85405685,0.00054794,120]
[426324220,1782305449000,-511.53097615,0.00054794,120]
[426324225,1782305449000,-527.6810225,0.00054794,120]
[426324226,1782305449000,-514.0569803,0.00054794,120]
[426324199,1782305449000,-500.0,0.00054794,120]
[426324210,1782305449000,-507.42811246,0.00054794,120]
[426324197,1782305449000,-500.0,0.00054794,120]
[426324170,1782305449000,-500.0,0.00054794,120]
[426324201,1782305449000,-500.0,0.00054794,120]
[426324224,1782305449000,-500.0,0.00054794,120]
[426324172,1782305449000,-500.0,0.00054794,120]
[426324174,1782305449000,-500.0,0.00054794,120]
[426324171,1782305449000,-500.0,0.00054794,120]
[426324169,1782305449000,-500.0,0.00054794,120]
[426324173,1782305449000,-500.0,0.00054794,120]
[426324176,1782305449000,-500.0,0.00054794,120]
[426324175,1782305449000,-500.0,0.00054794,120]
[426324179,1782305449000,-500.0,0.00054794,120]
[426324178,1782305449000,-500.0,0.00054794,120]
[426324177,1782305449000,-500.0,0.00054794,120]
[426324181,1782305449000,-500.0,0.00054794,120]
[426324191,1782305449000,-292.04100067,0.00054794,120]
[426324196,1782305449000,-514.6,0.00054794,120]
[426324180,1782305449000,-500.0,0.00054794,120]
[426324182,1782305449000,-500.0,0.00054794,120]
[426324184,1782305449000,-500.0,0.00054794,120]
[426324188,1782305449000,-301.98483717,0.00054794,120]
[426324186,1782305449000,-500.0,0.00054794,120]
[426324189,1782305449000,-239.61008406,0.00054794,120]
[426324187,1782305449000,-500.0,0.00054794,120]
[426324185,1782305449000,-500.0,0.00054794,120]
[426324190,1782305449000,-500.0,0.00054794,120]
[426324192,1782305449000,-400.74677125,0.00054794,120]
[426324195,1782305449000,-516.28682002,0.00054794,120]
[426324194,1782305449000,-500.0,0.00054794,120]
[426324193,1782305449000,-505.95742972,0.00054794,120]
[426324200,1782305449000,-500.0,0.00054794,120]
[426324183,1782305449000,-500.0,0.00054794,120]
[426324230,1782305449000,-510.07132882,0.00054794,120]
[426324218,1782305449000,-514.97152339,0.00054794,120]
[426324241,1782305449000,-513.24210657,0.00054794,120]
[426324261,1782305449000,-500.0,0.00054794,120]
[426324262,1782305449000,-419.92298515,0.00054794,120]
[426324263,1782305449000,-500.0,0.00054794,120]
[426324258,1782305449000,-406.34651143,0.00054794,120]
[426324268,1782305449000,-536.27608663,0.00054794,120]
[426324269,1782305449000,-551.62174894,0.00054794,120]
[426324270,1782305449000,-517.67610362,0.00054794,120]
[426324272,1782305449000,-500.0,0.00054794,120]
[426324271,1782305449000,-500.0,0.00054794,120]
[426324273,1782305449000,-529.26671536,0.00054794,120]
[426324275,1782305449000,-500.0,0.00054794,120]
[426324278,1782305449000,-513.74180329,0.00054794,120]
[426324279,1782305449000,-514.8587951,0.00054794,120]
[426324277,1782305449000,-500.0,0.00054794,120]
[426324274,1782305449000,-501.53754191,0.00054794,120]
[426324276,1782305449000,-543.50061909,0.00054794,120]
[426324288,1782305449000,-510.00547146,0.00054794,120]
[426324290,1782305449000,-500.0,0.00054794,120]
[426324289,1782305449000,-512.11290248,0.00054794,120]
[426324287,1782305449000,-534.12539287,0.00054794,120]
[426324280,1782305449000,-500.0,0.00054794,120]
[426324281,1782305449000,-490.38594493,0.00054794,120]
[426324282,1782305449000,-500.0,0.00054794,120]
[426324283,1782305449000,-522.24912051,0.00054794,120]
[426324284,1782305449000,-500.0,0.00054794,120]
[426324285,1782305449000,-370.32132277,0.00054794,120]
[426324286,1782305449000,-526.86338155,0.00054794,120]
[426324260,1782305449000,-500.0,0.00054794,120]
[426324259,1782305449000,-500.0,0.00054794,120]
[426324240,1782305449000,-500.0,0.00054794,120]
[426324256,1782305449000,-507.12114574,0.00054794,120]
[426324257,1782305449000,-509.37539428,0.00054794,120]
[426324229,1782305449000,-504.72282047,0.00054794,120]
[426324231,1782305449000,-531.47,0.00054794,120]
[426324232,1782305449000,-251.1125719,0.00054794,120]
[426324234,1782305449000,-513.92069378,0.00054794,120]
[426324233,1782305449000,-505.74788944,0.00054794,120]
[426324237,1782305449000,-500.0,0.00054794,120]
[426324239,1782305449000,-500.0,0.00054794,120]
[426324236,1782305449000,-500.0,0.00054794,120]
[426324238,1782305449000,-517.84888366,0.00054794,120]
[426324242,1782305449000,-514.03076448,0.00054794,120]
[426324244,1782305449000,-505.2254065,0.00054794,120]
[426324243,1782305449000,-500.0,0.00054794,120]
[426324247,1782305449000,-500.0,0.00054794,120]
[426324235,1782305449000,-500.0,0.00054794,120]
[426324252,1782305449000,-500.0,0.00054794,2]
[426324246,1782305449000,-2616.703413,0.00054794,2]
[426324266,1782305449000,-552.53521894,0.00054794,120]
[426324265,1782305449000,-302.18762648,0.00054794,120]
[426324264,1782305449000,-212.08308749,0.00054794,120]
[426324250,1782305449000,-2616.703413,0.00054794,2]
[426324251,1782305449000,-2616.703413,0.00054794,2]
[426324255,1782305449000,-623.83,0.00054794,120]
[426324267,1782305449000,-518.6685765,0.00054794,120]
[426324249,1782305449000,-2616.703413,0.00054794,2]
[426324253,1782305449000,-514.11954081,0.00054794,120]
[426324248,1782305449000,-500.0,0.00054794,120]
[426324245,1782305449000,-524.91504376,0.00054794,120]
[426324254,1782305449000,-500.0,0.00054794,120]
[426324324,1782305450000,-536.53268133,0.00054794,120]
[426324343,1782305450000,-504.46329502,0.00054794,120]
[426324333,1782305450000,-500.0,0.00054794,2]
[426324328,1782305450000,-519.16843906,0.00054794,120]
[426324331,1782305450000,-500.0,0.00054794,120]
[426324327,1782305450000,-501.38056049,0.00054794,120]
[426324326,1782305450000,-528.61624425,0.00054794,120]
[426324330,1782305450000,-528.50523488,0.00054794,120]
[426324325,1782305450000,-529.6725415,0.00054794,120]
[426324329,1782305450000,-506.77346047,0.00054794,120]
[426324344,1782305450000,-520.86967025,0.00054794,120]
[426324323,1782305450000,-364.69116036,0.00054794,120]
[426324332,1782305450000,-507.91486205,0.00054794,120]
[426324350,1782305450000,-505.98618795,0.00054794,120]
[426324335,1782305450000,-514.0377234,0.00054794,120]
[426324336,1782305450000,-545.63732513,0.00054794,120]
[426324334,1782305450000,-853.95,0.00054794,120]
[426324338,1782305450000,-509.54940176,0.00054794,120]
[426324340,1782305450000,-283.28725181,0.00054794,120]
[426324339,1782305450000,-531.37678499,0.00054794,120]
[426324342,1782305450000,-513.8396374,0.00054794,120]
[426324341,1782305450000,-500.0,0.00054794,120]
[426324345,1782305450000,-509.57532867,0.00054794,120]
[426324347,1782305450000,-15325.24,0.00054794,120]
[426324349,1782305450000,-502.84096625,0.00054794,120]
[426324356,1782305450000,-514.83542947,0.00054794,120]
[426324319,1782305450000,-513.31137809,0.00054794,120]
[426324337,1782305450000,-516.62640195,0.00054794,120]
[426324320,1782305450000,-500.0,0.00054794,120]
[426324308,1782305450000,-516.00485155,0.00054794,120]
[426324322,1782305450000,-508.37990588,0.00054794,120]
[426324346,1782305450000,-547.75507053,0.00054794,120]
[426324291,1782305450000,-509.77901001,0.00054794,120]
[426324297,1782305450000,-539.11051358,0.00054794,120]
[426324293,1782305450000,-502.26834884,0.00054794,120]
[426324300,1782305450000,-500.0,0.00054794,120]
[426324302,1782305450000,-514.09397271,0.00054794,120]
[426324295,1782305450000,-500.0,0.00054794,120]
[426324296,1782305450000,-505.41196662,0.00054794,120]
[426324294,1782305450000,-502.37633706,0.00054794,12]
[426324292,1782305450000,-518.48198784,0.00054794,120]
[426324301,1782305450000,-524.47464226,0.00054794,120]
[426324299,1782305450000,-673.8,0.00054794,120]
[426324303,1782305450000,-500.0,0.00054794,7]
[426324321,1782305450000,-516.89613535,0.00054794,120]
[426324298,1782305450000,-513.87825082,0.00054794,120]
[426324316,1782305450000,-500.0,0.00054794,120]
[426324317,1782305450000,-1437.3617,0.00054794,120]
[426324306,1782305450000,-505.44576651,0.00054794,120]
[426324315,1782305450000,-500.0,0.00054794,120]
[426324304,1782305450000,-523.92990826,0.00054794,120]
[426324307,1782305450000,-532.20554648,0.00054794,120]
[426324309,1782305450000,-536.34230206,0.00054794,120]
[426324311,1782305450000,-542.20332064,0.00054794,120]
[426324312,1782305450000,-511.70333141,0.00054794,120]
[426324313,1782305450000,-511.69406564,0.00054794,120]
[426324310,1782305450000,-507.0016623,0.00054794,120]
[426324314,1782305450000,-501.4533048,0.00054794,120]
[426324318,1782305450000,-517.5820169,0.00054794,120]
[426324305,1782305450000,-545.36012409,0.00054794,120]
[426324354,1782305450000,-500.0,0.00054794,120]
[426324351,1782305450000,-500.0,0.00054794,120]
[426324348,1782305450000,-521.89901142,0.00054794,120]
[426324390,1782305450000,-497.77133802,0.00054794,120]
[426324386,1782305450000,-9260.627784,0.00054794,120]
[426324387,1782305450000,-537.89700674,0.00054794,120]
[426324385,1782305450000,-509.85341858,0.00054794,120]
[426324392,1782305450000,-514.22748923,0.00054794,120]
[426324403,1782305450000,-515.30924094,0.00054794,120]
[426324393,1782305450000,-973.23,0.00054794,120]
[426324391,1782305450000,-9260.627784,0.00054794,120]
[426324402,1782305450000,-360.18642648,0.00054794,120]
[426324394,1782305450000,-515.06383742,0.00054794,120]
[426324395,1782305450000,-500.15657739,0.00054794,120]
[426324401,1782305450000,-1508.11,0.00054794,120]
[426324396,1782305450000,-517.69175337,0.00054794,120]
[426324382,1782305450000,-517.21290361,0.00054794,120]
[426324400,1782305450000,-500.0,0.00054794,120]
[426324399,1782305450000,-500.0,0.00054794,120]
[426324404,1782305450000,-516.39264136,0.00054794,120]
[426324405,1782305450000,-500.0,0.00054794,120]
[426324413,1782305450000,-500.0,0.00054794,120]
[426324406,1782305450000,-500.0,0.00054794,120]
[426324414,1782305450000,-10000.0,0.00054794,120]
[426324409,1782305450000,-500.0,0.00054794,120]
[426324407,1782305450000,-500.0,0.00054794,120]
[426324410,1782305450000,-10000.0,0.00054794,120]
[426324412,1782305450000,-10000.0,0.00054794,120]
[426324408,1782305450000,-500.0,0.00054794,120]
[426324352,1782305450000,-520.79385909,0.00054794,120]
[426324411,1782305450000,-507.88188471,0.00054794,120]
[426324398,1782305450000,-528.92010633,0.00054794,120]
[426324383,1782305450000,-1000.0,0.00054794,2]
[426324397,1782305450000,-514.91034021,0.00054794,120]
[426324389,1782305450000,-520.89158631,0.00054794,120]
[426324388,1782305450000,-9260.627784,0.00054794,120]
[426324353,1782305450000,-512.32454889,0.00054794,120]
[426324357,1782305450000,-502.79669837,0.00054794,120]
[426324359,1782305450000,-500.0,0.00054794,120]
[426324358,1782305450000,-500.0,0.00054794,120]
[426324361,1782305450000,-773.51,0.00054794,120]
[426324364,1782305450000,-1158.26,0.00054794,120]
[426324360,1782305450000,-500.86374216,0.00054794,120]
[426324363,1782305450000,-507.88426055,0.00054794,120]
[426324362,1782305450000,-518.30788965,0.00054794,120]
[426324366,1782305450000,-536.89319467,0.00054794,120]
[426324376,1782305450000,-2702.467872,0.00054794,120]
[426324367,1782305450000,-500.0,0.00054794,2]
[426324368,1782305450000,-508.06212512,0.00054794,120]
[426324355,1782305450000,-522.34600979,0.00054794,120]
[426324379,1782305450000,-2702.467872,0.00054794,120]
[426324377,1782305450000,-500.0,0.00054794,120]
[426324384,1782305450000,-9260.627784,0.00054794,120]
[426324380,1782305450000,-514.75133589,0.00054794,120]
[426324381,1782305450000,-513.68548154,0.00054794,120]
[426324372,1782305450000,-511.4949846,0.00054794,120]
[426324370,1782305450000,-518.29375465,0.00054794,120]
[426324378,1782305450000,-511.94439518,0.00054794,120]
[426324373,1782305450000,-2702.467872,0.00054794,120]
[426324369,1782305450000,-518.18840051,0.00054794,120]
[426324371,1782305450000,-2702.467872,0.00054794,120]
[426324375,1782305450000,-500.0,0.00054794,120]
[426324365,1782305450000,-500.0,0.00054794,120]
[426324374,1782305450000,-1944.73,0.00054794,120]
[426324455,1782305451000,-500.0,0.00054794,120]
[426324465,1782305451000,-514.19731684,0.00054794,120]
[426324462,1782305451000,-505.2738384,0.00054794,120]
[426324459,1782305451000,-2224.45,0.00054794,90]
[426324456,1782305451000,-500.0,0.00054794,120]
[426324444,1782305451000,-1529.97,0.00054794,90]
[426324450,1782305451000,-500.0,0.00054794,120]
[426324448,1782305451000,-624.84,0.00054794,120]
[426324452,1782305451000,-500.0,0.00054794,120]
[426324454,1782305451000,-517.54,0.00054794,120]
[426324453,1782305451000,-500.0,0.00054794,30]
[426324466,1782305451000,-531.34811952,0.00054794,120]
[426324447,1782305451000,-3508.86,0.00054794,120]
[426324451,1782305451000,-500.0,0.00054794,120]
[426324458,1782305451000,-1679.07,0.00054794,120]
[426324476,1782305451000,-500.0,0.00054794,120]
[426324467,1782305451000,-500.0,0.00054794,10]
[426324461,1782305451000,-518.52,0.00054794,120]
[426324464,1782305451000,-2131.75,0.00054794,120]
[426324460,1782305451000,-1522.77,0.00054794,120]
[426324457,1782305451000,-500.0,0.00054794,120]
[426324475,1782305451000,-514.86250019,0.00054794,120]
[426324481,1782305451000,-416.0,0.00054795,120]
[426324469,1782305451000,-500.0,0.00054794,120]
[426324480,1782305451000,-971.19,0.00054794,120]
[426324474,1782305451000,-507.7534469,0.00054794,120]
[426324468,1782305451000,-605.78,0.00054794,120]
[426324479,1782305451000,-500.0,0.00054794,120]
[426324478,1782305451000,-505.94160793,0.00054794,120]
[426324463,1782305451000,-500.0,0.00054794,7]
[426324449,1782305451000,-500.0,0.00054794,120]
[426324416,1782305451000,-500.0,0.00054794,120]
[426324445,1782305451000,-16139.94,0.00054794,120]
[426324473,1782305451000,-511.81791106,0.00054794,120]
[426324415,1782305451000,-500.0,0.00054794,120]
[426324417,1782305451000,-10000.0,0.00054794,120]
[426324426,1782305451000,-517.67928862,0.00054794,120]
[426324427,1782305451000,-542.01812234,0.00054794,120]
[426324428,1782305451000,-500.0,0.00054794,120]
[426324429,1782305451000,-605.81,0.00054794,120]
[426324418,1782305451000,-518.32737768,0.00054794,120]
[426324420,1782305451000,-507.53018361,0.00054794,120]
[426324422,1782305451000,-536.18781498,0.00054794,120]
[426324421,1782305451000,-2368.88,0.00054794,120]
[426324419,1782305451000,-536.90561435,0.00054794,120]
[426324424,1782305451000,-500.0,0.00054794,120]
[426324423,1782305451000,-697.19,0.00054794,120]
[426324425,1782305451000,-518.15391906,0.00054794,120]
[426324430,1782305451000,-515.27382345,0.00054794,120]
[426324432,1782305451000,-517.83921632,0.00054794,14]
[426324433,1782305451000,-509.74387055,0.00054794,120]
[426324435,1782305451000,-713.71,0.00054794,120]
[426324440,1782305451000,-850.9,0.00054794,120]
[426324431,1782305451000,-1055.6,0.00054794,11]
[426324437,1782305451000,-518.14534761,0.00054794,120]
[426324439,1782305451000,-507.84493428,0.00054794,120]
[426324438,1782305451000,-650.86,0.00054794,120]
[426324436,1782305451000,-500.0,0.00054794,120]
[426324434,1782305451000,-500.0,0.00054794,2]
[426324442,1782305451000,-512.84282284,0.00054794,120]
[426324441,1782305451000,-363.04869327,0.00054794,120]
[426324443,1782305451000,-500.0,0.00054794,120]
[426324446,1782305451000,-852.17,0.00054794,120]
[426324471,1782305451000,-505.73078062,0.00054794,120]
[426324541,1782305451000,-531.47,0.00055068,120]
[426324477,1782305451000,-1000.0,0.00054794,2]
[426324518,1782305451000,-3000.0,0.00055,120]
[426324508,1782305451000,-311.22587276,0.00054795,120]
[426324512,1782305451000,-3618.056168,0.00054795,120]
[426324517,1782305451000,-168.0,0.00055,120]
[426324515,1782305451000,-168.5402385,0.000549,120]
[426324519,1782305451000,-1728.0,0.00055,120]
[426324521,1782305451000,-2392.578121,0.00055,120]
[426324522,1782305451000,-2392.578121,0.00055,120]
[426324525,1782305451000,-500.0,0.00055068,120]
[426324524,1782305451000,-500.0,0.00055068,120]
[426324523,1782305451000,-2392.578121,0.00055,120]
[426324531,1782305451000,-500.0,0.00055068,120]
[426324520,1782305451000,-2392.578121,0.00055,120]
[426324532,1782305451000,-645.87048566,0.00055068,120]
[426324533,1782305451000,-500.0,0.00055068,120]
[426324526,1782305451000,-514.6,0.00055068,120]
[426324528,1782305451000,-500.0,0.00055068,120]
[426324529,1782305451000,-500.0,0.00055068,120]
[426324527,1782305451000,-225.32793502,0.00055068,120]
[426324530,1782305451000,-500.0,0.00055068,120]
[426324534,1782305451000,-978.44,0.00055068,120]
[426324536,1782305451000,-500.0,0.00055068,120]
[426324538,1782305451000,-500.0,0.00055068,120]
[426324537,1782305451000,-799.0,0.00055068,6]
[426324539,1782305451000,-500.0,0.00055068,120]
[426324543,1782305451000,-500.0,0.00055068,120]
[426324540,1782305451000,-500.0,0.00055068,120]
[426324472,1782305451000,-500.0,0.00054794,120]
[426324535,1782305451000,-500.0,0.00055068,120]
[426324516,1782305451000,-20000.0,0.00055,120]
[426324514,1782305451000,-1550.22570185,0.000548,120]
[426324542,1782305451000,-500.0,0.00055068,120]
[426324509,1782305451000,-3618.056168,0.00054795,120]
[426324510,1782305451000,-3618.056168,0.00054795,120]
[426324482,1782305451000,-500.0,0.00054795,120]
[426324484,1782305451000,-500.0,0.00054795,120]
[426324489,1782305451000,-500.0,0.00054795,120]
[426324492,1782305451000,-500.0,0.00054795,120]
[426324486,1782305451000,-500.0,0.00054795,120]
[426324490,1782305451000,-500.0,0.00054795,120]
[426324488,1782305451000,-500.0,0.00054795,120]
[426324491,1782305451000,-500.0,0.00054795,120]
[426324487,1782305451000,-500.0,0.00054795,120]
[426324485,1782305451000,-500.0,0.00054795,120]
[426324483,1782305451000,-500.0,0.00054795,120]
[426324493,1782305451000,-500.0,0.00054795,120]